Workbook

Sheet Calculator
B1: Mnthly Int Rate
B2: =0.08/12 -> 0.006666666667
B3: Payments
B4: Start Date | C4: Amount
A5: Initial | B5: 2024-02-27 | C5: 250
A6: 1st Adj
A7: 2nd Adj | U7: 12 | V7: Year: | W7: =INDIRECT("B"&U7) -> 2013 | AA7: =U7+1 -> 13 | AB7: Year: | AC7: =INDIRECT("B"&AA7) -> 2014 | AG7: =AA7+1 -> 14 | AH7: Year: | AI7: =INDIRECT("B"&AG7) -> 2015 | AM7: =AG7+1 -> 15 | AN7: Year: | AO7: =INDIRECT("B"&AM7) -> 2016 | AS7: =AM7+1 -> 16 | AT7: Year: | AU7: =INDIRECT("B"&AS7) -> 2017 | AY7: =AS7+1 -> 17 | AZ7: Year: | BA7: =INDIRECT("B"&AY7) -> 2018 | BE7: =AY7+1 -> 18 | BF7: Year: | BG7: =INDIRECT("B"&BE7) -> 2019 | BK7: =BE7+1 -> 19 | BL7: Year: | BM7: =INDIRECT("B"&BK7) -> 2020 | BQ7: =BK7+1 -> 20 | BR7: Year: | BS7: =INDIRECT("B"&BQ7) -> 2021 | BW7: =BQ7+1 -> 21 | BX7: Year: | BY7: =INDIRECT("B"&BW7) -> 2022
V8: CSED | W8: =IF(INDIRECT("C"&U7)="","",INDIRECT("C"&U7)) -> 1929-12-01 | X8: Pays by CSED | AB8: CSED | AC8: =IF(INDIRECT("C"&AA7)="","",INDIRECT("C"&AA7)) -> 1941-01-24 | AD8: Pays by CSED | AH8: CSED | AI8: =IF(INDIRECT("C"&AG7)="","",INDIRECT("C"&AG7)) -> 1919-03-01 | AJ8: Pays by CSED | AN8: CSED | AO8: =IF(INDIRECT("C"&AM7)="","",INDIRECT("C"&AM7)) -> 1906-11-04 | AP8: Pays by CSED | AT8: CSED | AU8: =IF(INDIRECT("C"&AS7)="","",INDIRECT("C"&AS7)) -> 1913-09-08 | AV8: Pays by CSED | AZ8: CSED | BA8: =IF(INDIRECT("C"&AY7)="","",INDIRECT("C"&AY7)) -> 1908-03-18 | BB8: Pays by CSED | BF8: CSED | BG8: =IF(INDIRECT("C"&BE7)="","",INDIRECT("C"&BE7)) -> 1924-08-21 | BH8: Pays by CSED | BL8: CSED | BM8: =IF(INDIRECT("C"&BK7)="","",INDIRECT("C"&BK7)) -> 1932-11-07 | BN8: Pays by CSED | BR8: CSED | BS8: =IF(INDIRECT("C"&BQ7)="","",INDIRECT("C"&BQ7)) -> 1902-04-29 | BT8: Pays by CSED | BX8: CSED | BY8: =IF(INDIRECT("C"&BW7)="","",INDIRECT("C"&BW7)) -> 1901-11-17 | BZ8: Pays by CSED
V9: Pays off | W9: =IF(W10="","",MIN(Y12:Y79)) -> 00:00:00 | X9: =IF(W10="","",IF(W9<W8,"YES","NO")) -> YES | AB9: Pays off | AC9: =IF(OR(AC10="",AC10=0),"",MIN(AE12:AE79)) -> 2026-01-15 | AD9: =IF(AC10="","",IF(AC9<AC8,"YES","NO")) -> NO | AH9: Pays off | AI9: =IF(AI10="","",MIN(AK12:AK79)) -> 2026-09-15 | AJ9: =IF(AI10="","",IF(AI9<AI8,"YES","NO")) -> NO | AN9: Pays off | AO9: =IF(AO10="","",MIN(AQ12:AQ79)) -> 2027-05-15 | AP9: =IF(AO10="","",IF(AO9<AO8,"YES","NO")) -> NO | AT9: Pays off | AU9: =IF(AU10="","",MIN(AW12:AW79)) -> 2028-01-15 | AV9: =IF(AU10="","",IF(AU9<AU8,"YES","NO")) -> NO | AZ9: Pays off | BA9: =IF(BA10="","",MIN(BC12:BC79)) -> 2028-09-15 | BB9: =IF(BA10="","",IF(BA9<BA8,"YES","NO")) -> NO | BF9: Pays off | BG9: =IF(BG10="","",MIN(BI12:BI79)) -> 2029-05-15 | BH9: =IF(BG10="","",IF(BG9<BG8,"YES","NO")) -> NO | BL9: Pays off | BM9: =IF(BM10="","",MIN(BO12:BO79)) -> 2030-01-15 | BN9: =IF(BM10="","",IF(BM9<BM8,"YES","NO")) -> NO | BR9: Pays off | BS9: =IF(BS10="","",MIN(BU12:BU79)) -> 2030-09-15 | BT9: =IF(BS10="","",IF(BS9<BS8,"YES","NO")) -> NO | BX9: Pays off | BY9: =IF(BY10="","",MIN(CA12:CA79)) -> 2031-05-15 | BZ9: =IF(BY10="","",IF(BY9<BY8,"YES","NO")) -> NO
B10: Enter each period in order from earliest to latest tax year | V10: Amount: | W10: =IF(INDIRECT("B"&U7)="","",INDIRECT("B"&U7)) -> 2013 | AB10: Amount: | AC10: =IF(INDIRECT("B"&AA7)="","",INDIRECT("B"&AA7)) -> 2014 | AH10: Amount: | AI10: =IF(INDIRECT("B"&AG7)="","",INDIRECT("B"&AG7)) -> 2015 | AN10: Amount: | AO10: =IF(INDIRECT("B"&AM7)="","",INDIRECT("B"&AM7)) -> 2016 | AT10: Amount: | AU10: =IF(INDIRECT("B"&AS7)="","",INDIRECT("B"&AS7)) -> 2017 | AZ10: Amount: | BA10: =IF(INDIRECT("B"&AY7)="","",INDIRECT("B"&AY7)) -> 2018 | BF10: Amount: | BG10: =IF(INDIRECT("B"&BE7)="","",INDIRECT("B"&BE7)) -> 2019 | BL10: Amount: | BM10: =IF(INDIRECT("B"&BK7)="","",INDIRECT("B"&BK7)) -> 2020 | BR10: Amount: | BS10: =IF(INDIRECT("B"&BQ7)="","",INDIRECT("B"&BQ7)) -> 2021 | BX10: Amount: | BY10: =IF(INDIRECT("B"&BW7)="","",INDIRECT("B"&BW7)) -> 2022
B11: Year | C11: Balance | D11: CSED | E11: Tax Assessed | F11: WH & Credits | G11: Return Due | H11: Return Filed | I11: Tax Due Dt | J11: Payoff date | K11: Paid by CSED | U11: Date | V11: Payment | W11: Beg Bal | X11: End Bal | Y11: Stop Date | AA11: Date | AB11: Payment | AC11: Beg Bal | AD11: End Bal | AE11: Stop Date | AG11: Date | AH11: Payment | AI11: Beg Bal | AJ11: End Bal | AK11: Stop Date | AM11: Date | AN11: Payment | AO11: Beg Bal | AP11: End Bal | AQ11: Stop Date | AS11: Date | AT11: Payment | AU11: Beg Bal | AV11: End Bal | AW11: Stop Date | AY11: Date | AZ11: Payment | BA11: Beg Bal | BB11: End Bal | BC11: Stop Date | BE11: Date | BF11: Payment | BG11: Beg Bal | BH11: End Bal | BI11: Stop Date | BK11: Date | BL11: Payment | BM11: Beg Bal | BN11: End Bal | BO11: Stop Date | BQ11: Date | BR11: Payment | BS11: Beg Bal | BT11: End Bal | BU11: Stop Date | BW11: Date | BX11: Payment | BY11: Beg Bal | BZ11: End Bal | CA11: Stop Date
B12: 2013 | C12: =Table1[[#This Row],[Tax Assessed]]-Table1[[#This Row],[WH & Credits]] -> 10928 | D12: 2027-06-05 | E12: 14587 | F12: 3659 | G12: 2017-04-15 | H12: 2018-08-01 | I12: 2017-04-15 | J12: =IF(OR(B12="",C12="",D12=""),"",W9) -> 00:00:00 | K12: =IF(J12="","",IF(J12<D12,"YES","NO")) -> YES | U12: =IF(OR(Table1[[#This Row],[Tax Assessed]]="",Table1[[#This Row],[Tax Assessed]]=0),"",Table1[[#This Row],[Tax Due Dt]]) -> 2017-04-15 | V12: =IF(W10="","",IF(AND($B$7<>"",U12>=$B$7),$C$7,IF(AND($B$6<>"",U12>=$B$6),$C$6,IF(U12>=$B$5,$C$5,IF(U12<$B$5,0))))) -> 0 | W12: =IF(W10="","",W10) -> 2013 | X12: =IF(W10="","",W12-V12+(W12*$B$2)) -> 2026.42 | Y12: =IF(X12>0,"",U12) ->  | AA12: =IF(OR(AC10="",AC10=0),"",MIN(Y12:Y191)) -> 2025-05-15 | AB12: =IF(AC10="","",IF(AND($B$7<>"",AA12>=$B$7),$C$7,IF(AND($B$6<>"",AA12>=$B$6),$C$6,IF(AA12>=$B$5,$C$5,IF(AA12<$B$5,0))))) -> 250 | AC12: =IF(OR(AC10="",AC10=0),"",AC10) -> 2014 | AD12: =IF(OR(AC10="",AC10=0),"",AC12-AB12+(AC12*$B$2)) -> 1777.426667 | AE12: =IF(AD12>0,"",AA12) ->  | AG12: =IF(OR(AI10="",AI10=0),"",MIN(AE12:AE191)) -> 2026-01-15 | AH12: =IF(AI10="","",IF(AND($B$7<>"",AG12>=$B$7),$C$7,IF(AND($B$6<>"",AG12>=$B$6),$C$6,IF(AG12>=$B$5,$C$5,IF(AG12<$B$5,0))))) -> 250 | AI12: =IF(OR(AI10="",AI10=0),"",AI10) -> 2015 | AJ12: =IF(OR(AI10="",AI10=0),"",AI12-AH12+(AI12*$B$2)) -> 1778.433333 | AK12: =IF(AJ12>0,"",AG12) ->  | AM12: =IF(OR(AO10="",AO10=0),"",MIN(AK12:AK191)) -> 2026-09-15 | AN12: =IF(AO10="","",IF(AND($B$7<>"",AM12>=$B$7),$C$7,IF(AND($B$6<>"",AM12>=$B$6),$C$6,IF(AM12>=$B$5,$C$5,IF(AM12<$B$5,0))))) -> 250 | AO12: =IF(OR(AO10="",AO10=0),"",AO10) -> 2016 | AP12: =IF(OR(AO10="",AO10=0),"",AO12-AN12+(AO12*$B$2)) -> 1779.44 | AQ12: =IF(AP12>0,"",AM12) ->  | AS12: =IF(OR(AU10="",AU10=0),"",MIN(AQ12:AQ191)) -> 2027-05-15 | AT12: =IF(AU10="","",IF(AND($B$7<>"",AS12>=$B$7),$C$7,IF(AND($B$6<>"",AS12>=$B$6),$C$6,IF(AS12>=$B$5,$C$5,IF(AS12<$B$5,0))))) -> 250 | AU12: =IF(OR(AU10="",AU10=0),"",AU10) -> 2017 | AV12: =IF(OR(AU10="",AU10=0),"",AU12-AT12+(AU12*$B$2)) -> 1780.446667 | AW12: =IF(AV12>0,"",AS12) ->  | AY12: =IF(OR(BA10="",BA10=0),"",MIN(AW12:AW191)) -> 2028-01-15 | AZ12: =IF(BA10="","",IF(AND($B$7<>"",AY12>=$B$7),$C$7,IF(AND($B$6<>"",AY12>=$B$6),$C$6,IF(AY12>=$B$5,$C$5,IF(AY12<$B$5,0))))) -> 250 | BA12: =IF(OR(BA10="",BA10=0),"",BA10) -> 2018 | BB12: =IF(OR(BA10="",BA10=0),"",BA12-AZ12+(BA12*$B$2)) -> 1781.453333 | BC12: =IF(BB12>0,"",AY12) ->  | BE12: =IF(OR(BG10="",BG10=0),"",MIN(BC12:BC191)) -> 2028-09-15 | BF12: =IF(BG10="","",IF(AND($B$7<>"",BE12>=$B$7),$C$7,IF(AND($B$6<>"",BE12>=$B$6),$C$6,IF(BE12>=$B$5,$C$5,IF(BE12<$B$5,0))))) -> 250 | BG12: =IF(OR(BG10="",BG10=0),"",BG10) -> 2019 | BH12: =IF(OR(BG10="",BG10=0),"",BG12-BF12+(BG12*$B$2)) -> 1782.46 | BI12: =IF(BH12>0,"",BE12) ->  | BK12: =IF(OR(BM10="",BM10=0),"",MIN(BI12:BI191)) -> 2029-05-15 | BL12: =IF(BM10="","",IF(AND($B$7<>"",BK12>=$B$7),$C$7,IF(AND($B$6<>"",BK12>=$B$6),$C$6,IF(BK12>=$B$5,$C$5,IF(BK12<$B$5,0))))) -> 250 | BM12: =IF(OR(BM10="",BM10=0),"",BM10) -> 2020 | BN12: =IF(OR(BM10="",BM10=0),"",BM12-BL12+(BM12*$B$2)) -> 1783.466667 | BO12: =IF(BN12>0,"",BK12) ->  | BQ12: =IF(OR(BS10="",BS10=0),"",MIN(BO12:BO191)) -> 2030-01-15 | BR12: =IF(BS10="","",IF(AND($B$7<>"",BQ12>=$B$7),$C$7,IF(AND($B$6<>"",BQ12>=$B$6),$C$6,IF(BQ12>=$B$5,$C$5,IF(BQ12<$B$5,0))))) -> 250 | BS12: =IF(OR(BS10="",BS10=0),"",BS10) -> 2021 | BT12: =IF(OR(BS10="",BS10=0),"",BS12-BR12+(BS12*$B$2)) -> 1784.473333 | BU12: =IF(BT12>0,"",BQ12) ->  | BW12: =IF(OR(BY10="",BY10=0),"",MIN(BU12:BU191)) -> 2030-09-15 | BX12: =IF(BY10="","",IF(AND($B$7<>"",BW12>=$B$7),$C$7,IF(AND($B$6<>"",BW12>=$B$6),$C$6,IF(BW12>=$B$5,$C$5,IF(BW12<$B$5,0))))) -> 250 | BY12: =IF(OR(BY10="",BY10=0),"",BY10) -> 2022 | BZ12: =IF(OR(BY10="",BY10=0),"",BY12-BX12+(BY12*$B$2)) -> 1785.48 | CA12: =IF(BZ12>0,"",BW12) -> 
B13: 2014 | C13: =Table1[[#This Row],[Tax Assessed]]-Table1[[#This Row],[WH & Credits]] -> 15000 | D13: 2028-06-04 | E13: 15000 | J13: =IF(OR(B13="",C13="",D13=""),"",AC9) -> 2026-01-15 | K13: YES | U13: =IF(OR(X12="",X12<0),"",EDATE(U12,1)) -> 2017-05-15 | V13: =IF(OR(X12="",X12<0),"",IF(AND($B$7<>"",U13>=$B$7),$C$7,IF(AND($B$6<>"",U13>=$B$6),$C$6,IF(U13>=$B$5,$C$5,IF(U13<$B$5,0))))) -> 0 | W13: =IF(OR(X12<0,X12=""),"",X12) -> 2026.42 | X13: =IF(OR(X12<0,X12=""),"",W13-V13+(W13*$B$2)) -> 2039.929467 | Y13: =IF(X13>0,"",U13) ->  | AA13: =IF(OR(AD12="",AD12<0),"",EDATE(AA12,1)) -> 2025-06-15 | AB13: =IF(OR(AD12="",AD12<0),"",IF(AND($B$7<>"",AA13>=$B$7),$C$7,IF(AND($B$6<>"",AA13>=$B$6),$C$6,IF(AA13>=$B$5,$C$5,IF(AA13<$B$5,0))))) -> 250 | AC13: =IF(OR(AD12<0,AD12=""),"",AD12) -> 1777.426667 | AD13: =IF(OR(AD12<0,AD12=""),"",AC13-AB13+(AC13*$B$2)) -> 1539.276178 | AE13: =IF(AD13>0,"",AA13) ->  | AG13: =IF(OR(AJ12="",AJ12<0),"",EDATE(AG12,1)) -> 2026-02-15 | AH13: =IF(OR(AJ12="",AJ12<0),"",IF(AND($B$7<>"",AG13>=$B$7),$C$7,IF(AND($B$6<>"",AG13>=$B$6),$C$6,IF(AG13>=$B$5,$C$5,IF(AG13<$B$5,0))))) -> 250 | AI13: =IF(OR(AJ12<0,AJ12=""),"",AJ12) -> 1778.433333 | AJ13: =IF(OR(AJ12<0,AJ12=""),"",AI13-AH13+(AI13*$B$2)) -> 1540.289556 | AK13: =IF(AJ13>0,"",AG13) ->  | AM13: =IF(OR(AP12="",AP12<0),"",EDATE(AM12,1)) -> 2026-10-15 | AN13: =IF(OR(AP12="",AP12<0),"",IF(AND($B$7<>"",AM13>=$B$7),$C$7,IF(AND($B$6<>"",AM13>=$B$6),$C$6,IF(AM13>=$B$5,$C$5,IF(AM13<$B$5,0))))) -> 250 | AO13: =IF(OR(AP12<0,AP12=""),"",AP12) -> 1779.44 | AP13: =IF(OR(AP12<0,AP12=""),"",AO13-AN13+(AO13*$B$2)) -> 1541.302933 | AQ13: =IF(AP13>0,"",AM13) ->  | AS13: =IF(OR(AV12="",AV12<0),"",EDATE(AS12,1)) -> 2027-06-15 | AT13: =IF(OR(AV12="",AV12<0),"",IF(AND($B$7<>"",AS13>=$B$7),$C$7,IF(AND($B$6<>"",AS13>=$B$6),$C$6,IF(AS13>=$B$5,$C$5,IF(AS13<$B$5,0))))) -> 250 | AU13: =IF(OR(AV12<0,AV12=""),"",AV12) -> 1780.446667 | AV13: =IF(OR(AV12<0,AV12=""),"",AU13-AT13+(AU13*$B$2)) -> 1542.316311 | AW13: =IF(AV13>0,"",AS13) ->  | AY13: =IF(OR(BB12="",BB12<0),"",EDATE(AY12,1)) -> 2028-02-15 | AZ13: =IF(OR(BB12="",BB12<0),"",IF(AND($B$7<>"",AY13>=$B$7),$C$7,IF(AND($B$6<>"",AY13>=$B$6),$C$6,IF(AY13>=$B$5,$C$5,IF(AY13<$B$5,0))))) -> 250 | BA13: =IF(OR(BB12<0,BB12=""),"",BB12) -> 1781.453333 | BB13: =IF(OR(BB12<0,BB12=""),"",BA13-AZ13+(BA13*$B$2)) -> 1543.329689 | BC13: =IF(BB13>0,"",AY13) ->  | BE13: =IF(OR(BH12="",BH12<0),"",EDATE(BE12,1)) -> 2028-10-15 | BF13: =IF(OR(BH12="",BH12<0),"",IF(AND($B$7<>"",BE13>=$B$7),$C$7,IF(AND($B$6<>"",BE13>=$B$6),$C$6,IF(BE13>=$B$5,$C$5,IF(BE13<$B$5,0))))) -> 250 | BG13: =IF(OR(BH12<0,BH12=""),"",BH12) -> 1782.46 | BH13: =IF(OR(BH12<0,BH12=""),"",BG13-BF13+(BG13*$B$2)) -> 1544.343067 | BI13: =IF(BH13>0,"",BE13) ->  | BK13: =IF(OR(BN12="",BN12<0),"",EDATE(BK12,1)) -> 2029-06-15 | BL13: =IF(OR(BN12="",BN12<0),"",IF(AND($B$7<>"",BK13>=$B$7),$C$7,IF(AND($B$6<>"",BK13>=$B$6),$C$6,IF(BK13>=$B$5,$C$5,IF(BK13<$B$5,0))))) -> 250 | BM13: =IF(OR(BN12<0,BN12=""),"",BN12) -> 1783.466667 | BN13: =IF(OR(BN12<0,BN12=""),"",BM13-BL13+(BM13*$B$2)) -> 1545.356444 | BO13: =IF(BN13>0,"",BK13) ->  | BQ13: =IF(OR(BT12="",BT12<0),"",EDATE(BQ12,1)) -> 2030-02-15 | BR13: =IF(OR(BT12="",BT12<0),"",IF(AND($B$7<>"",BQ13>=$B$7),$C$7,IF(AND($B$6<>"",BQ13>=$B$6),$C$6,IF(BQ13>=$B$5,$C$5,IF(BQ13<$B$5,0))))) -> 250 | BS13: =IF(OR(BT12<0,BT12=""),"",BT12) -> 1784.473333 | BT13: =IF(OR(BT12<0,BT12=""),"",BS13-BR13+(BS13*$B$2)) -> 1546.369822 | BU13: =IF(BT13>0,"",BQ13) ->  | BW13: =IF(OR(BZ12="",BZ12<0),"",EDATE(BW12,1)) -> 2030-10-15 | BX13: =IF(OR(BZ12="",BZ12<0),"",IF(AND($B$7<>"",BW13>=$B$7),$C$7,IF(AND($B$6<>"",BW13>=$B$6),$C$6,IF(BW13>=$B$5,$C$5,IF(BW13<$B$5,0))))) -> 250 | BY13: =IF(OR(BZ12<0,BZ12=""),"",BZ12) -> 1785.48 | BZ13: =IF(OR(BZ12<0,BZ12=""),"",BY13-BX13+(BY13*$B$2)) -> 1547.3832 | CA13: =IF(BZ13>0,"",BW13) -> 
B14: 2015 | C14: =Table1[[#This Row],[Tax Assessed]]-Table1[[#This Row],[WH & Credits]] -> 7000 | D14: 2029-06-03 | E14: 7000 | J14: =IF(OR(B14="",C14="",D14=""),"",AI9) -> 2026-09-15 | K14: YES | U14: =IF(OR(X13="",X13<0),"",EDATE(U13,1)) -> 2017-06-15 | V14: =IF(OR(X13="",X13<0),"",IF(AND($B$7<>"",U14>=$B$7),$C$7,IF(AND($B$6<>"",U14>=$B$6),$C$6,IF(U14>=$B$5,$C$5,IF(U14<$B$5,0))))) -> 0 | W14: =IF(OR(X13<0,X13=""),"",X13) -> 2039.929467 | X14: =IF(OR(X13<0,X13=""),"",W14-V14+(W14*$B$2)) -> 2053.528996 | Y14: =IF(X14>0,"",U14) ->  | AA14: =IF(OR(AD13="",AD13<0),"",EDATE(AA13,1)) -> 2025-07-15 | AB14: =IF(OR(AD13="",AD13<0),"",IF(AND($B$7<>"",AA14>=$B$7),$C$7,IF(AND($B$6<>"",AA14>=$B$6),$C$6,IF(AA14>=$B$5,$C$5,IF(AA14<$B$5,0))))) -> 250 | AC14: =IF(OR(AD13<0,AD13=""),"",AD13) -> 1539.276178 | AD14: =IF(OR(AD13<0,AD13=""),"",AC14-AB14+(AC14*$B$2)) -> 1299.538019 | AE14: =IF(AD14>0,"",AA14) ->  | AG14: =IF(OR(AJ13="",AJ13<0),"",EDATE(AG13,1)) -> 2026-03-15 | AH14: =IF(OR(AJ13="",AJ13<0),"",IF(AND($B$7<>"",AG14>=$B$7),$C$7,IF(AND($B$6<>"",AG14>=$B$6),$C$6,IF(AG14>=$B$5,$C$5,IF(AG14<$B$5,0))))) -> 250 | AI14: =IF(OR(AJ13<0,AJ13=""),"",AJ13) -> 1540.289556 | AJ14: =IF(OR(AJ13<0,AJ13=""),"",AI14-AH14+(AI14*$B$2)) -> 1300.558153 | AK14: =IF(AJ14>0,"",AG14) ->  | AM14: =IF(OR(AP13="",AP13<0),"",EDATE(AM13,1)) -> 2026-11-15 | AN14: =IF(OR(AP13="",AP13<0),"",IF(AND($B$7<>"",AM14>=$B$7),$C$7,IF(AND($B$6<>"",AM14>=$B$6),$C$6,IF(AM14>=$B$5,$C$5,IF(AM14<$B$5,0))))) -> 250 | AO14: =IF(OR(AP13<0,AP13=""),"",AP13) -> 1541.302933 | AP14: =IF(OR(AP13<0,AP13=""),"",AO14-AN14+(AO14*$B$2)) -> 1301.578286 | AQ14: =IF(AP14>0,"",AM14) ->  | AS14: =IF(OR(AV13="",AV13<0),"",EDATE(AS13,1)) -> 2027-07-15 | AT14: =IF(OR(AV13="",AV13<0),"",IF(AND($B$7<>"",AS14>=$B$7),$C$7,IF(AND($B$6<>"",AS14>=$B$6),$C$6,IF(AS14>=$B$5,$C$5,IF(AS14<$B$5,0))))) -> 250 | AU14: =IF(OR(AV13<0,AV13=""),"",AV13) -> 1542.316311 | AV14: =IF(OR(AV13<0,AV13=""),"",AU14-AT14+(AU14*$B$2)) -> 1302.59842 | AW14: =IF(AV14>0,"",AS14) ->  | AY14: =IF(OR(BB13="",BB13<0),"",EDATE(AY13,1)) -> 2028-03-15 | AZ14: =IF(OR(BB13="",BB13<0),"",IF(AND($B$7<>"",AY14>=$B$7),$C$7,IF(AND($B$6<>"",AY14>=$B$6),$C$6,IF(AY14>=$B$5,$C$5,IF(AY14<$B$5,0))))) -> 250 | BA14: =IF(OR(BB13<0,BB13=""),"",BB13) -> 1543.329689 | BB14: =IF(OR(BB13<0,BB13=""),"",BA14-AZ14+(BA14*$B$2)) -> 1303.618553 | BC14: =IF(BB14>0,"",AY14) ->  | BE14: =IF(OR(BH13="",BH13<0),"",EDATE(BE13,1)) -> 2028-11-15 | BF14: =IF(OR(BH13="",BH13<0),"",IF(AND($B$7<>"",BE14>=$B$7),$C$7,IF(AND($B$6<>"",BE14>=$B$6),$C$6,IF(BE14>=$B$5,$C$5,IF(BE14<$B$5,0))))) -> 250 | BG14: =IF(OR(BH13<0,BH13=""),"",BH13) -> 1544.343067 | BH14: =IF(OR(BH13<0,BH13=""),"",BG14-BF14+(BG14*$B$2)) -> 1304.638687 | BI14: =IF(BH14>0,"",BE14) ->  | BK14: =IF(OR(BN13="",BN13<0),"",EDATE(BK13,1)) -> 2029-07-15 | BL14: =IF(OR(BN13="",BN13<0),"",IF(AND($B$7<>"",BK14>=$B$7),$C$7,IF(AND($B$6<>"",BK14>=$B$6),$C$6,IF(BK14>=$B$5,$C$5,IF(BK14<$B$5,0))))) -> 250 | BM14: =IF(OR(BN13<0,BN13=""),"",BN13) -> 1545.356444 | BN14: =IF(OR(BN13<0,BN13=""),"",BM14-BL14+(BM14*$B$2)) -> 1305.658821 | BO14: =IF(BN14>0,"",BK14) ->  | BQ14: =IF(OR(BT13="",BT13<0),"",EDATE(BQ13,1)) -> 2030-03-15 | BR14: =IF(OR(BT13="",BT13<0),"",IF(AND($B$7<>"",BQ14>=$B$7),$C$7,IF(AND($B$6<>"",BQ14>=$B$6),$C$6,IF(BQ14>=$B$5,$C$5,IF(BQ14<$B$5,0))))) -> 250 | BS14: =IF(OR(BT13<0,BT13=""),"",BT13) -> 1546.369822 | BT14: =IF(OR(BT13<0,BT13=""),"",BS14-BR14+(BS14*$B$2)) -> 1306.678954 | BU14: =IF(BT14>0,"",BQ14) ->  | BW14: =IF(OR(BZ13="",BZ13<0),"",EDATE(BW13,1)) -> 2030-11-15 | BX14: =IF(OR(BZ13="",BZ13<0),"",IF(AND($B$7<>"",BW14>=$B$7),$C$7,IF(AND($B$6<>"",BW14>=$B$6),$C$6,IF(BW14>=$B$5,$C$5,IF(BW14<$B$5,0))))) -> 250 | BY14: =IF(OR(BZ13<0,BZ13=""),"",BZ13) -> 1547.3832 | BZ14: =IF(OR(BZ13<0,BZ13=""),"",BY14-BX14+(BY14*$B$2)) -> 1307.699088 | CA14: =IF(BZ14>0,"",BW14) -> 
B15: 2016 | C15: =Table1[[#This Row],[Tax Assessed]]-Table1[[#This Row],[WH & Credits]] -> 2500 | D15: 2030-08-17 | E15: 2500 | J15: =IF(OR(B15="",C15="",D15=""),"",AO9) -> 2027-05-15 | K15: YES | U15: 2017-07-15 | V15: 0 | W15: 2053.528996 | X15: 2067.21919 | AA15: 2025-08-15 | AB15: 250 | AC15: 1299.538019 | AD15: 1058.201606 | AG15: 2026-04-15 | AH15: 250 | AI15: 1300.558153 | AJ15: 1059.22854 | AM15: 2026-12-15 | AN15: 250 | AO15: 1301.578286 | AP15: 1060.255475 | AS15: 2027-08-15 | AT15: 250 | AU15: 1302.59842 | AV15: 1061.282409 | AY15: 2028-04-15 | AZ15: 250 | BA15: 1303.618553 | BB15: 1062.309344 | BE15: 2028-12-15 | BF15: 250 | BG15: 1304.638687 | BH15: 1063.336278 | BK15: 2029-08-15 | BL15: 250 | BM15: 1305.658821 | BN15: 1064.363213 | BQ15: 2030-04-15 | BR15: 250 | BS15: 1306.678954 | BT15: 1065.390147 | BW15: 2030-12-15 | BX15: 250 | BY15: 1307.699088 | BZ15: 1066.417082
B16: 2017 | C16: =Table1[[#This Row],[Tax Assessed]]-Table1[[#This Row],[WH & Credits]] -> 5000 | D16: 2034-04-29 | E16: 5000 | J16: =IF(OR(B16="",C16="",D16=""),"",AU9) -> 2028-01-15 | K16: YES | U16: 2017-08-15 | V16: 0 | W16: 2067.21919 | X16: 2081.000651 | AA16: 2025-09-15 | AB16: 250 | AC16: 1058.201606 | AD16: 815.2562831 | AG16: 2026-05-15 | AH16: 250 | AI16: 1059.22854 | AJ16: 816.2900639 | AM16: 2027-01-15 | AN16: 250 | AO16: 1060.255475 | AP16: 817.3238446 | AS16: 2027-09-15 | AT16: 250 | AU16: 1061.282409 | AV16: 818.3576254 | AY16: 2028-05-15 | AZ16: 250 | BA16: 1062.309344 | BB16: 819.3914061 | BE16: 2029-01-15 | BF16: 250 | BG16: 1063.336278 | BH16: 820.4251869 | BK16: 2029-09-15 | BL16: 250 | BM16: 1064.363213 | BN16: 821.4589676 | BQ16: 2030-05-15 | BR16: 250 | BS16: 1065.390147 | BT16: 822.4927484 | BW16: 2031-01-15 | BX16: 250 | BY16: 1066.417082 | BZ16: 823.5265291
B17: 2018 | C17: =Table1[[#This Row],[Tax Assessed]]-Table1[[#This Row],[WH & Credits]] -> 3000 | D17: 2034-06-03 | E17: 3000 | J17: =IF(OR(B17="",C17="",D17=""),"",BA9) -> 2028-09-15 | K17: YES | U17: 2017-09-15 | V17: 0 | W17: 2081.000651 | X17: 2094.873989 | AA17: 2025-10-15 | AB17: 250 | AC17: 815.2562831 | AD17: 570.691325 | AG17: 2026-06-15 | AH17: 250 | AI17: 816.2900639 | AJ17: 571.7319976 | AM17: 2027-02-15 | AN17: 250 | AO17: 817.3238446 | AP17: 572.7726703 | AS17: 2027-10-15 | AT17: 250 | AU17: 818.3576254 | AV17: 573.8133429 | AY17: 2028-06-15 | AZ17: 250 | BA17: 819.3914061 | BB17: 574.8540155 | BE17: 2029-02-15 | BF17: 250 | BG17: 820.4251869 | BH17: 575.8946881 | BK17: 2029-10-15 | BL17: 250 | BM17: 821.4589676 | BN17: 576.9353607 | BQ17: 2030-06-15 | BR17: 250 | BS17: 822.4927484 | BT17: 577.9760334 | BW17: 2031-02-15 | BX17: 250 | BY17: 823.5265291 | BZ17: 579.016706
B18: 2019 | C18: =Table1[[#This Row],[Tax Assessed]]-Table1[[#This Row],[WH & Credits]] -> 9000 | D18: 2034-06-15 | E18: 9000 | J18: =IF(OR(B18="",C18="",D18=""),"",BG9) -> 2029-05-15 | K18: YES | U18: 2017-10-15 | V18: 0 | W18: 2094.873989 | X18: 2108.839815 | AA18: 2025-11-15 | AB18: 250 | AC18: 570.691325 | AD18: 324.4959338 | AG18: 2026-07-15 | AH18: 250 | AI18: 571.7319976 | AJ18: 325.5435443 | AM18: 2027-03-15 | AN18: 250 | AO18: 572.7726703 | AP18: 326.5911547 | AS18: 2027-11-15 | AT18: 250 | AU18: 573.8133429 | AV18: 327.6387652 | AY18: 2028-07-15 | AZ18: 250 | BA18: 574.8540155 | BB18: 328.6863756 | BE18: 2029-03-15 | BF18: 250 | BG18: 575.8946881 | BH18: 329.733986 | BK18: 2029-11-15 | BL18: 250 | BM18: 576.9353607 | BN18: 330.7815965 | BQ18: 2030-07-15 | BR18: 250 | BS18: 577.9760334 | BT18: 331.8292069 | BW18: 2031-03-15 | BX18: 250 | BY18: 579.016706 | BZ18: 332.8768174
B19: 2020 | C19: =Table1[[#This Row],[Tax Assessed]]-Table1[[#This Row],[WH & Credits]] -> 12000 | D19: 2034-06-15 | E19: 12000 | J19: =IF(OR(B19="",C19="",D19=""),"",BM9) -> 2030-01-15 | K19: YES | U19: 2017-11-15 | V19: 0 | W19: 2108.839815 | X19: 2122.898747 | AA19: 2025-12-15 | AB19: 250 | AC19: 324.4959338 | AD19: 76.65924007 | AG19: 2026-08-15 | AH19: 250 | AI19: 325.5435443 | AJ19: 77.71383458 | AM19: 2027-04-15 | AN19: 250 | AO19: 326.5911547 | AP19: 78.76842909 | AS19: 2027-12-15 | AT19: 250 | AU19: 327.6387652 | AV19: 79.8230236 | AY19: 2028-08-15 | AZ19: 250 | BA19: 328.6863756 | BB19: 80.87761811 | BE19: 2029-04-15 | BF19: 250 | BG19: 329.733986 | BH19: 81.93221262 | BK19: 2029-12-15 | BL19: 250 | BM19: 330.7815965 | BN19: 82.98680713 | BQ19: 2030-08-15 | BR19: 250 | BS19: 331.8292069 | BT19: 84.04140164 | BW19: 2031-04-15 | BX19: 250 | BY19: 332.8768174 | BZ19: 85.09599615
B20: 2021 | C20: =Table1[[#This Row],[Tax Assessed]]-Table1[[#This Row],[WH & Credits]] -> 850 | D20: 2034-06-15 | E20: 850 | J20: =IF(OR(B20="",C20="",D20=""),"",BS9) -> 2030-09-15 | K20: YES | U20: 2017-12-15 | V20: 0 | W20: 2122.898747 | X20: 2137.051406 | AA20: 2026-01-15 | AB20: 250 | AC20: 76.65924007 | AD20: -172.8296983 | AE20: 2026-01-15 | AG20: 2026-09-15 | AH20: 250 | AI20: 77.71383458 | AJ20: -171.7680732 | AK20: 2026-09-15 | AM20: 2027-05-15 | AN20: 250 | AO20: 78.76842909 | AP20: -170.706448 | AQ20: 2027-05-15 | AS20: 2028-01-15 | AT20: 250 | AU20: 79.8230236 | AV20: -169.6448229 | AW20: 2028-01-15 | AY20: 2028-09-15 | AZ20: 250 | BA20: 80.87761811 | BB20: -168.5831978 | BC20: 2028-09-15 | BE20: 2029-05-15 | BF20: 250 | BG20: 81.93221262 | BH20: -167.5215726 | BI20: 2029-05-15 | BK20: 2030-01-15 | BL20: 250 | BM20: 82.98680713 | BN20: -166.4599475 | BO20: 2030-01-15 | BQ20: 2030-09-15 | BR20: 250 | BS20: 84.04140164 | BT20: -165.3983223 | BU20: 2030-09-15 | BW20: 2031-05-15 | BX20: 250 | BY20: 85.09599615 | BZ20: -164.3366972 | CA20: 2031-05-15
B21: 2022 | C21: =Table1[[#This Row],[Tax Assessed]]-Table1[[#This Row],[WH & Credits]] -> 687 | D21: 2034-06-15 | E21: 687 | J21: =IF(OR(B21="",C21="",D21=""),"",BY9) -> 2031-05-15 | K21: YES | U21: 2018-01-15 | V21: 0 | W21: 2137.051406 | X21: 2151.298415
B22: Total | C22: =SUBTOTAL(9,Table1[Tax Assessed]) -> 69624 | D22: ="Earliest: "&TEXT(MIN(Table1[CSED]),"mm/dd/yyyy") -> Earliest: 06/05/2027 | E22: =SUBTOTAL(9,Table1[Tax Assessed]) -> 69624 | F22: =SUBTOTAL(9,Table1[WH & Credits]) -> 3659 | K22: =IF(COUNTIF(Table1[Paid by CSED],"NO")=0,"All Paid by CSED","Unpaid "&COUNTIF(Table1[Paid by CSED],"NO")) -> All Paid by CSED | U22: 2018-02-15 | V22: 0 | W22: 2151.298415 | X22: 2165.640405
U23: 2018-03-15 | V23: 0 | W23: 2165.640405 | X23: 2180.078007
U24: 2018-04-15 | V24: 0 | W24: 2180.078007 | X24: 2194.611861
U25: 2018-05-15 | V25: 0 | W25: 2194.611861 | X25: 2209.242606
U26: 2018-06-15 | V26: 0 | W26: 2209.242606 | X26: 2223.97089
U27: 2018-07-15 | V27: 0 | W27: 2223.97089 | X27: 2238.797363
U28: 2018-08-15 | V28: 0 | W28: 2238.797363 | X28: 2253.722679
U29: 2018-09-15 | V29: 0 | W29: 2253.722679 | X29: 2268.747497
U30: 2018-10-15 | V30: 0 | W30: 2268.747497 | X30: 2283.87248
U31: 2018-11-15 | V31: 0 | W31: 2283.87248 | X31: 2299.098296
U32: 2018-12-15 | V32: 0 | W32: 2299.098296 | X32: 2314.425618
U33: 2019-01-15 | V33: 0 | W33: 2314.425618 | X33: 2329.855123
U34: 2019-02-15 | V34: 0 | W34: 2329.855123 | X34: 2345.38749
U35: 2019-03-15 | V35: 0 | W35: 2345.38749 | X35: 2361.023407
U36: 2019-04-15 | V36: 0 | W36: 2361.023407 | X36: 2376.763563
U37: 2019-05-15 | V37: 0 | W37: 2376.763563 | X37: 2392.608653
U38: 2019-06-15 | V38: 0 | W38: 2392.608653 | X38: 2408.559377
U39: 2019-07-15 | V39: 0 | W39: 2408.559377 | X39: 2424.61644
U40: 2019-08-15 | V40: 0 | W40: 2424.61644 | X40: 2440.78055
U41: 2019-09-15 | V41: 0 | W41: 2440.78055 | X41: 2457.05242
U42: 2019-10-15 | V42: 0 | W42: 2457.05242 | X42: 2473.432769
U43: 2019-11-15 | V43: 0 | W43: 2473.432769 | X43: 2489.922321
U44: 2019-12-15 | V44: 0 | W44: 2489.922321 | X44: 2506.521803
U45: 2020-01-15 | V45: 0 | W45: 2506.521803 | X45: 2523.231949
U46: 2020-02-15 | V46: 0 | W46: 2523.231949 | X46: 2540.053495
U47: 2020-03-15 | V47: 0 | W47: 2540.053495 | X47: 2556.987185
U48: 2020-04-15 | V48: 0 | W48: 2556.987185 | X48: 2574.033766
U49: 2020-05-15 | V49: 0 | W49: 2574.033766 | X49: 2591.193991
U50: 2020-06-15 | V50: 0 | W50: 2591.193991 | X50: 2608.468618
U51: 2020-07-15 | V51: 0 | W51: 2608.468618 | X51: 2625.858409
U52: 2020-08-15 | V52: 0 | W52: 2625.858409 | X52: 2643.364131
U53: 2020-09-15 | V53: 0 | W53: 2643.364131 | X53: 2660.986559
U54: 2020-10-15 | V54: 0 | W54: 2660.986559 | X54: 2678.726469
U55: 2020-11-15 | V55: 0 | W55: 2678.726469 | X55: 2696.584646
U56: 2020-12-15 | V56: 0 | W56: 2696.584646 | X56: 2714.561877
U57: 2021-01-15 | V57: 0 | W57: 2714.561877 | X57: 2732.658956
U58: 2021-02-15 | V58: 0 | W58: 2732.658956 | X58: 2750.876682
U59: 2021-03-15 | V59: 0 | W59: 2750.876682 | X59: 2769.21586
U60: 2021-04-15 | V60: 0 | W60: 2769.21586 | X60: 2787.677299
U61: 2021-05-15 | V61: 0 | W61: 2787.677299 | X61: 2806.261815
U62: 2021-06-15 | V62: 0 | W62: 2806.261815 | X62: 2824.970227
U63: 2021-07-15 | V63: 0 | W63: 2824.970227 | X63: 2843.803362
U64: 2021-08-15 | V64: 0 | W64: 2843.803362 | X64: 2862.762051
U65: 2021-09-15 | V65: 0 | W65: 2862.762051 | X65: 2881.847131
U66: 2021-10-15 | V66: 0 | W66: 2881.847131 | X66: 2901.059445
U67: 2021-11-15 | V67: 0 | W67: 2901.059445 | X67: 2920.399841
U68: 2021-12-15 | V68: 0 | W68: 2920.399841 | X68: 2939.869174
U69: 2022-01-15 | V69: 0 | W69: 2939.869174 | X69: 2959.468302
U70: 2022-02-15 | V70: 0 | W70: 2959.468302 | X70: 2979.19809
U71: 2022-03-15 | V71: 0 | W71: 2979.19809 | X71: 2999.059411
U72: 2022-04-15 | V72: 0 | W72: 2999.059411 | X72: 3019.05314
U73: 2022-05-15 | V73: 0 | W73: 3019.05314 | X73: 3039.180161
U74: 2022-06-15 | V74: 0 | W74: 3039.180161 | X74: 3059.441362
U75: 2022-07-15 | V75: 0 | W75: 3059.441362 | X75: 3079.837638
U76: 2022-08-15 | V76: 0 | W76: 3079.837638 | X76: 3100.369889
U77: 2022-09-15 | V77: 0 | W77: 3100.369889 | X77: 3121.039021
U78: =IF(OR(X77="",X77<0),"",EDATE(U77,1)) -> 2022-10-15 | V78: =IF(OR(X77="",X77<0),"",IF(AND($B$7<>"",U78>=$B$7),$C$7,IF(AND($B$6<>"",U78>=$B$6),$C$6,IF(U78>=$B$5,$C$5,IF(U78<$B$5,0))))) -> 0 | W78: =IF(OR(X77<0,X77=""),"",X77) -> 3121.039021 | X78: =IF(OR(X77<0,X77=""),"",W78-V78+(W78*$B$2)) -> 3141.845948 | Y78: =IF(X78>0,"",U78) ->  | AA78: =IF(OR(AD77="",AD77<0),"",EDATE(AA77,1)) ->  | AB78: =IF(OR(AD77="",AD77<0),"",IF(AND($B$7<>"",AA78>=$B$7),$C$7,IF(AND($B$6<>"",AA78>=$B$6),$C$6,IF(AA78>=$B$5,$C$5,IF(AA78<$B$5,0))))) ->  | AC78: =IF(OR(AD77<0,AD77=""),"",AD77) ->  | AD78: =IF(OR(AD77<0,AD77=""),"",AC78-AB78+(AC78*$B$2)) ->  | AE78: =IF(AD78>0,"",AA78) ->  | AG78: =IF(OR(AJ77="",AJ77<0),"",EDATE(AG77,1)) ->  | AH78: =IF(OR(AJ77="",AJ77<0),"",IF(AND($B$7<>"",AG78>=$B$7),$C$7,IF(AND($B$6<>"",AG78>=$B$6),$C$6,IF(AG78>=$B$5,$C$5,IF(AG78<$B$5,0))))) ->  | AI78: =IF(OR(AJ77<0,AJ77=""),"",AJ77) ->  | AJ78: =IF(OR(AJ77<0,AJ77=""),"",AI78-AH78+(AI78*$B$2)) ->  | AK78: =IF(AJ78>0,"",AG78) ->  | AM78: =IF(OR(AP77="",AP77<0),"",EDATE(AM77,1)) ->  | AN78: =IF(OR(AP77="",AP77<0),"",IF(AND($B$7<>"",AM78>=$B$7),$C$7,IF(AND($B$6<>"",AM78>=$B$6),$C$6,IF(AM78>=$B$5,$C$5,IF(AM78<$B$5,0))))) ->  | AO78: =IF(OR(AP77<0,AP77=""),"",AP77) ->  | AP78: =IF(OR(AP77<0,AP77=""),"",AO78-AN78+(AO78*$B$2)) ->  | AQ78: =IF(AP78>0,"",AM78) ->  | AS78: =IF(OR(AV77="",AV77<0),"",EDATE(AS77,1)) ->  | AT78: =IF(OR(AV77="",AV77<0),"",IF(AND($B$7<>"",AS78>=$B$7),$C$7,IF(AND($B$6<>"",AS78>=$B$6),$C$6,IF(AS78>=$B$5,$C$5,IF(AS78<$B$5,0))))) ->  | AU78: =IF(OR(AV77<0,AV77=""),"",AV77) ->  | AV78: =IF(OR(AV77<0,AV77=""),"",AU78-AT78+(AU78*$B$2)) ->  | AW78: =IF(AV78>0,"",AS78) ->  | AY78: =IF(OR(BB77="",BB77<0),"",EDATE(AY77,1)) ->  | AZ78: =IF(OR(BB77="",BB77<0),"",IF(AND($B$7<>"",AY78>=$B$7),$C$7,IF(AND($B$6<>"",AY78>=$B$6),$C$6,IF(AY78>=$B$5,$C$5,IF(AY78<$B$5,0))))) ->  | BA78: =IF(OR(BB77<0,BB77=""),"",BB77) ->  | BB78: =IF(OR(BB77<0,BB77=""),"",BA78-AZ78+(BA78*$B$2)) ->  | BC78: =IF(BB78>0,"",AY78) ->  | BE78: =IF(OR(BH77="",BH77<0),"",EDATE(BE77,1)) ->  | BF78: =IF(OR(BH77="",BH77<0),"",IF(AND($B$7<>"",BE78>=$B$7),$C$7,IF(AND($B$6<>"",BE78>=$B$6),$C$6,IF(BE78>=$B$5,$C$5,IF(BE78<$B$5,0))))) ->  | BG78: =IF(OR(BH77<0,BH77=""),"",BH77) ->  | BH78: =IF(OR(BH77<0,BH77=""),"",BG78-BF78+(BG78*$B$2)) ->  | BI78: =IF(BH78>0,"",BE78) ->  | BK78: =IF(OR(BN77="",BN77<0),"",EDATE(BK77,1)) ->  | BL78: =IF(OR(BN77="",BN77<0),"",IF(AND($B$7<>"",BK78>=$B$7),$C$7,IF(AND($B$6<>"",BK78>=$B$6),$C$6,IF(BK78>=$B$5,$C$5,IF(BK78<$B$5,0))))) ->  | BM78: =IF(OR(BN77<0,BN77=""),"",BN77) ->  | BN78: =IF(OR(BN77<0,BN77=""),"",BM78-BL78+(BM78*$B$2)) ->  | BO78: =IF(BN78>0,"",BK78) ->  | BQ78: =IF(OR(BT77="",BT77<0),"",EDATE(BQ77,1)) ->  | BR78: =IF(OR(BT77="",BT77<0),"",IF(AND($B$7<>"",BQ78>=$B$7),$C$7,IF(AND($B$6<>"",BQ78>=$B$6),$C$6,IF(BQ78>=$B$5,$C$5,IF(BQ78<$B$5,0))))) ->  | BS78: =IF(OR(BT77<0,BT77=""),"",BT77) ->  | BT78: =IF(OR(BT77<0,BT77=""),"",BS78-BR78+(BS78*$B$2)) ->  | BU78: =IF(BT78>0,"",BQ78) ->  | BW78: =IF(OR(BZ77="",BZ77<0),"",EDATE(BW77,1)) ->  | BX78: =IF(OR(BZ77="",BZ77<0),"",IF(AND($B$7<>"",BW78>=$B$7),$C$7,IF(AND($B$6<>"",BW78>=$B$6),$C$6,IF(BW78>=$B$5,$C$5,IF(BW78<$B$5,0))))) ->  | BY78: =IF(OR(BZ77<0,BZ77=""),"",BZ77) ->  | BZ78: =IF(OR(BZ77<0,BZ77=""),"",BY78-BX78+(BY78*$B$2)) ->  | CA78: =IF(BZ78>0,"",BW78) -> 
U79: 2022-11-15 | V79: 0 | W79: 3141.845948 | X79: 3162.791588
U80: 2022-12-15 | V80: 0 | W80: 3162.791588 | X80: 3183.876865
U81: 2023-01-15 | V81: 0 | W81: 3183.876865 | X81: 3205.102711
U82: 2023-02-15 | V82: 0 | W82: 3205.102711 | X82: 3226.470062
U83: 2023-03-15 | V83: 0 | W83: 3226.470062 | X83: 3247.979863
U84: 2023-04-15 | V84: 0 | W84: 3247.979863 | X84: 3269.633062
U85: 2023-05-15 | V85: 0 | W85: 3269.633062 | X85: 3291.430616
U86: 2023-06-15 | V86: 0 | W86: 3291.430616 | X86: 3313.373486
U87: 2023-07-15 | V87: 0 | W87: 3313.373486 | X87: 3335.462643
U88: 2023-08-15 | V88: 0 | W88: 3335.462643 | X88: 3357.699061
U89: 2023-09-15 | V89: 0 | W89: 3357.699061 | X89: 3380.083721
U90: 2023-10-15 | V90: 0 | W90: 3380.083721 | X90: 3402.617612
U91: 2023-11-15 | V91: 0 | W91: 3402.617612 | X91: 3425.30173
U92: 2023-12-15 | V92: 0 | W92: 3425.30173 | X92: 3448.137075
U93: 2024-01-15 | V93: 0 | W93: 3448.137075 | X93: 3471.124655
U94: 2024-02-15 | V94: 0 | W94: 3471.124655 | X94: 3494.265486
U95: 2024-03-15 | V95: 250 | W95: 3494.265486 | X95: 3267.56059
U96: 2024-04-15 | V96: 250 | W96: 3267.56059 | X96: 3039.344327
U97: 2024-05-15 | V97: 250 | W97: 3039.344327 | X97: 2809.606622
U98: 2024-06-15 | V98: 250 | W98: 2809.606622 | X98: 2578.337333
U99: 2024-07-15 | V99: 250 | W99: 2578.337333 | X99: 2345.526249
U100: 2024-08-15 | V100: 250 | W100: 2345.526249 | X100: 2111.16309
U101: 2024-09-15 | V101: 250 | W101: 2111.16309 | X101: 1875.237511
U102: 2024-10-15 | V102: 250 | W102: 1875.237511 | X102: 1637.739094
U103: 2024-11-15 | V103: 250 | W103: 1637.739094 | X103: 1398.657355
U104: 2024-12-15 | V104: 250 | W104: 1398.657355 | X104: 1157.981737
U105: 2025-01-15 | V105: 250 | W105: 1157.981737 | X105: 915.7016156
U106: 2025-02-15 | V106: 250 | W106: 915.7016156 | X106: 671.806293
U107: 2025-03-15 | V107: 250 | W107: 671.806293 | X107: 426.2850016
U108: 2025-04-15 | V108: 250 | W108: 426.2850016 | X108: 179.1269017
U109: 2025-05-15 | V109: 250 | W109: 179.1269017 | X109: -69.678919 | Y109: 2025-05-15
U142: =IF(OR(X141="",X141<0),"",EDATE(U141,1)) ->  | V142: =IF(OR(X141="",X141<0),"",IF(AND($B$7<>"",U142>=$B$7),$C$7,IF(AND($B$6<>"",U142>=$B$6),$C$6,IF(U142>=$B$5,$C$5,IF(U142<$B$5,0))))) ->  | W142: =IF(OR(X141<0,X141=""),"",X141) ->  | X142: =IF(OR(X141<0,X141=""),"",W142-V142+(W142*$B$2)) ->  | Y142: =IF(X142>0,"",U142) ->  | AA142: =IF(OR(AD141="",AD141<0),"",EDATE(AA141,1)) ->  | AB142: =IF(OR(AD141="",AD141<0),"",IF(AND($B$7<>"",AA142>=$B$7),$C$7,IF(AND($B$6<>"",AA142>=$B$6),$C$6,IF(AA142>=$B$5,$C$5,IF(AA142<$B$5,0))))) ->  | AC142: =IF(OR(AD141<0,AD141=""),"",AD141) ->  | AD142: =IF(OR(AD141<0,AD141=""),"",AC142-AB142+(AC142*$B$2)) ->  | AE142: =IF(AD142>0,"",AA142) ->  | AG142: =IF(OR(AJ141="",AJ141<0),"",EDATE(AG141,1)) ->  | AH142: =IF(OR(AJ141="",AJ141<0),"",IF(AND($B$7<>"",AG142>=$B$7),$C$7,IF(AND($B$6<>"",AG142>=$B$6),$C$6,IF(AG142>=$B$5,$C$5,IF(AG142<$B$5,0))))) ->  | AI142: =IF(OR(AJ141<0,AJ141=""),"",AJ141) ->  | AJ142: =IF(OR(AJ141<0,AJ141=""),"",AI142-AH142+(AI142*$B$2)) ->  | AK142: =IF(AJ142>0,"",AG142) ->  | AM142: =IF(OR(AP141="",AP141<0),"",EDATE(AM141,1)) ->  | AN142: =IF(OR(AP141="",AP141<0),"",IF(AND($B$7<>"",AM142>=$B$7),$C$7,IF(AND($B$6<>"",AM142>=$B$6),$C$6,IF(AM142>=$B$5,$C$5,IF(AM142<$B$5,0))))) ->  | AO142: =IF(OR(AP141<0,AP141=""),"",AP141) ->  | AP142: =IF(OR(AP141<0,AP141=""),"",AO142-AN142+(AO142*$B$2)) ->  | AQ142: =IF(AP142>0,"",AM142) ->  | AS142: =IF(OR(AV141="",AV141<0),"",EDATE(AS141,1)) ->  | AT142: =IF(OR(AV141="",AV141<0),"",IF(AND($B$7<>"",AS142>=$B$7),$C$7,IF(AND($B$6<>"",AS142>=$B$6),$C$6,IF(AS142>=$B$5,$C$5,IF(AS142<$B$5,0))))) ->  | AU142: =IF(OR(AV141<0,AV141=""),"",AV141) ->  | AV142: =IF(OR(AV141<0,AV141=""),"",AU142-AT142+(AU142*$B$2)) ->  | AW142: =IF(AV142>0,"",AS142) ->  | AY142: =IF(OR(BB141="",BB141<0),"",EDATE(AY141,1)) ->  | AZ142: =IF(OR(BB141="",BB141<0),"",IF(AND($B$7<>"",AY142>=$B$7),$C$7,IF(AND($B$6<>"",AY142>=$B$6),$C$6,IF(AY142>=$B$5,$C$5,IF(AY142<$B$5,0))))) ->  | BA142: =IF(OR(BB141<0,BB141=""),"",BB141) ->  | BB142: =IF(OR(BB141<0,BB141=""),"",BA142-AZ142+(BA142*$B$2)) ->  | BC142: =IF(BB142>0,"",AY142) ->  | BE142: =IF(OR(BH141="",BH141<0),"",EDATE(BE141,1)) ->  | BF142: =IF(OR(BH141="",BH141<0),"",IF(AND($B$7<>"",BE142>=$B$7),$C$7,IF(AND($B$6<>"",BE142>=$B$6),$C$6,IF(BE142>=$B$5,$C$5,IF(BE142<$B$5,0))))) ->  | BG142: =IF(OR(BH141<0,BH141=""),"",BH141) ->  | BH142: =IF(OR(BH141<0,BH141=""),"",BG142-BF142+(BG142*$B$2)) ->  | BI142: =IF(BH142>0,"",BE142) ->  | BK142: =IF(OR(BN141="",BN141<0),"",EDATE(BK141,1)) ->  | BL142: =IF(OR(BN141="",BN141<0),"",IF(AND($B$7<>"",BK142>=$B$7),$C$7,IF(AND($B$6<>"",BK142>=$B$6),$C$6,IF(BK142>=$B$5,$C$5,IF(BK142<$B$5,0))))) ->  | BM142: =IF(OR(BN141<0,BN141=""),"",BN141) ->  | BN142: =IF(OR(BN141<0,BN141=""),"",BM142-BL142+(BM142*$B$2)) ->  | BO142: =IF(BN142>0,"",BK142) ->  | BQ142: =IF(OR(BT141="",BT141<0),"",EDATE(BQ141,1)) ->  | BR142: =IF(OR(BT141="",BT141<0),"",IF(AND($B$7<>"",BQ142>=$B$7),$C$7,IF(AND($B$6<>"",BQ142>=$B$6),$C$6,IF(BQ142>=$B$5,$C$5,IF(BQ142<$B$5,0))))) ->  | BS142: =IF(OR(BT141<0,BT141=""),"",BT141) ->  | BT142: =IF(OR(BT141<0,BT141=""),"",BS142-BR142+(BS142*$B$2)) ->  | BU142: =IF(BT142>0,"",BQ142) ->  | BW142: =IF(OR(BZ141="",BZ141<0),"",EDATE(BW141,1)) ->  | BX142: =IF(OR(BZ141="",BZ141<0),"",IF(AND($B$7<>"",BW142>=$B$7),$C$7,IF(AND($B$6<>"",BW142>=$B$6),$C$6,IF(BW142>=$B$5,$C$5,IF(BW142<$B$5,0))))) ->  | BY142: =IF(OR(BZ141<0,BZ141=""),"",BZ141) ->  | BZ142: =IF(OR(BZ141<0,BZ141=""),"",BY142-BX142+(BY142*$B$2)) ->  | CA142: =IF(BZ142>0,"",BW142) -> 

Sheet Penalties
B5: Return Due | C5: =IF(Calculator!G12="","",Calculator!G12) -> 2017-04-15
B6: Return Filed | C6: =IF(Calculator!H12="","",Calculator!H12) -> 2018-08-01
B7: Tax Due Dt. | C7: =IF(Calculator!I12="","",Calculator!I12) -> 2017-04-15
B8: Bal Due | C8: =IF(OR(Calculator!E12="",Calculator!F12=""),"",Calculator!E12-Calculator!F12) -> 10928
B11: FTF
B12: =IF($C$5="","",EOMONTH($C$5,0)+1) -> 2017-05-01 | C12: =IF(Calculator!$H$12>Calculator!$G$12,IF(_xlfn.XLOOKUP(B12,$B$20:$B$69,$C$20:$C$69)="",0.05,0.045),"") -> 0.045
B13: =IF($C$5="","",EOMONTH($C$5,1)+1) -> 2017-06-01 | C13: =IF(Calculator!$H$12>Calculator!$G$12,IF(_xlfn.XLOOKUP(B13,$B$20:$B$69,$C$20:$C$69)="",0.05,0.045),"") -> 0.045
B14: =IF($C$5="","",EOMONTH($C$5,2)+1) -> 2017-07-01 | C14: =IF(Calculator!$H$12>Calculator!$G$12,IF(_xlfn.XLOOKUP(B14,$B$20:$B$69,$C$20:$C$69)="",0.05,0.045),"") -> 0.045
B15: =IF($C$5="","",EOMONTH($C$5,3)+1) -> 2017-08-01 | C15: =IF(Calculator!$H$12>Calculator!$G$12,IF(_xlfn.XLOOKUP(B15,$B$20:$B$69,$C$20:$C$69)="",0.05,0.045),"") -> 0.045
B16: =IF($C$5="","",EOMONTH($C$5,4)+1) -> 2017-09-01 | C16: =IF(Calculator!$H$12>Calculator!$G$12,IF(_xlfn.XLOOKUP(B16,$B$20:$B$69,$C$20:$C$69)="",0.05,0.045),"") -> 0.045
B17: =IF($C$5="","",EOMONTH($C$5,5)+1) -> 2017-10-01 | C17: =IF(Calculator!$H$12>Calculator!$G$12,IF(_xlfn.XLOOKUP(B17,$B$20:$B$69,$C$20:$C$69)="",0.05,0.045),"") -> 0.045
B19: FTP
B20: =IF(Calculator!$I$12="","",EOMONTH(Calculator!$I$12,0)+1) -> 2017-05-01 | C20: =IF(B20>Calculator!$I$12,0.005,"") -> 0.005
B21: =IF(Calculator!$I$12="","",EOMONTH(Calculator!$I$12,1)+1) -> 2017-06-01 | C21: =IF(B21>Calculator!$I$12,0.005,"") -> 0.005
B22: =IF(Calculator!$I$12="","",EOMONTH(Calculator!$I$12,2)+1) -> 2017-07-01 | C22: =IF(B22>Calculator!$I$12,0.005,"") -> 0.005
B23: =IF(Calculator!$I$12="","",EOMONTH(Calculator!$I$12,3)+1) -> 2017-08-01 | C23: =IF(B23>Calculator!$I$12,0.005,"") -> 0.005
B24: =IF(Calculator!$I$12="","",EOMONTH(Calculator!$I$12,4)+1) -> 2017-09-01 | C24: =IF(B24>Calculator!$I$12,0.005,"") -> 0.005
B25: =IF(Calculator!$I$12="","",EOMONTH(Calculator!$I$12,5)+1) -> 2017-10-01 | C25: =IF(B25>Calculator!$I$12,0.005,"") -> 0.005
B26: =IF(Calculator!$I$12="","",EOMONTH(Calculator!$I$12,6)+1) -> 2017-11-01 | C26: =IF(B26>Calculator!$I$12,0.005,"") -> 0.005
B27: =IF(Calculator!$I$12="","",EOMONTH(Calculator!$I$12,7)+1) -> 2017-12-01 | C27: =IF(B27>Calculator!$I$12,0.005,"") -> 0.005
B28: =IF(Calculator!$I$12="","",EOMONTH(Calculator!$I$12,8)+1) -> 2018-01-01 | C28: =IF(B28>Calculator!$I$12,0.005,"") -> 0.005
B29: =IF(Calculator!$I$12="","",EOMONTH(Calculator!$I$12,9)+1) -> 2018-02-01 | C29: =IF(B29>Calculator!$I$12,0.005,"") -> 0.005
B30: =IF(Calculator!$I$12="","",EOMONTH(Calculator!$I$12,10)+1) -> 2018-03-01 | C30: =IF(B30>Calculator!$I$12,0.005,"") -> 0.005
B31: =IF(Calculator!$I$12="","",EOMONTH(Calculator!$I$12,11)+1) -> 2018-04-01 | C31: =IF(B31>Calculator!$I$12,0.005,"") -> 0.005
B32: =IF(Calculator!$I$12="","",EOMONTH(Calculator!$I$12,12)+1) -> 2018-05-01 | C32: =IF(B32>Calculator!$I$12,0.005,"") -> 0.005
B33: =IF(Calculator!$I$12="","",EOMONTH(Calculator!$I$12,13)+1) -> 2018-06-01 | C33: =IF(B33>Calculator!$I$12,0.005,"") -> 0.005
B34: =IF(Calculator!$I$12="","",EOMONTH(Calculator!$I$12,14)+1) -> 2018-07-01 | C34: =IF(B34>Calculator!$I$12,0.005,"") -> 0.005
B35: =IF(Calculator!$I$12="","",EOMONTH(Calculator!$I$12,15)+1) -> 2018-08-01 | C35: =IF(B35>Calculator!$I$12,0.005,"") -> 0.005
B36: =IF(Calculator!$I$12="","",EOMONTH(Calculator!$I$12,16)+1) -> 2018-09-01 | C36: =IF(B36>Calculator!$I$12,0.005,"") -> 0.005
B37: =IF(Calculator!$I$12="","",EOMONTH(Calculator!$I$12,17)+1) -> 2018-10-01 | C37: =IF(B37>Calculator!$I$12,0.005,"") -> 0.005
B38: =IF(Calculator!$I$12="","",EOMONTH(Calculator!$I$12,18)+1) -> 2018-11-01 | C38: =IF(B38>Calculator!$I$12,0.005,"") -> 0.005
B39: =IF(Calculator!$I$12="","",EOMONTH(Calculator!$I$12,19)+1) -> 2018-12-01 | C39: =IF(B39>Calculator!$I$12,0.005,"") -> 0.005
B40: =IF(Calculator!$I$12="","",EOMONTH(Calculator!$I$12,20)+1) -> 2019-01-01 | C40: =IF(B40>Calculator!$I$12,0.005,"") -> 0.005
B41: =IF(Calculator!$I$12="","",EOMONTH(Calculator!$I$12,21)+1) -> 2019-02-01 | C41: =IF(B41>Calculator!$I$12,0.005,"") -> 0.005
B42: =IF(Calculator!$I$12="","",EOMONTH(Calculator!$I$12,22)+1) -> 2019-03-01 | C42: =IF(B42>Calculator!$I$12,0.005,"") -> 0.005
B43: =IF(Calculator!$I$12="","",EOMONTH(Calculator!$I$12,23)+1) -> 2019-04-01 | C43: =IF(B43>Calculator!$I$12,0.005,"") -> 0.005
B44: =IF(Calculator!$I$12="","",EOMONTH(Calculator!$I$12,24)+1) -> 2019-05-01 | C44: =IF(B44>Calculator!$I$12,0.005,"") -> 0.005
B45: =IF(Calculator!$I$12="","",EOMONTH(Calculator!$I$12,25)+1) -> 2019-06-01 | C45: =IF(B45>Calculator!$I$12,0.005,"") -> 0.005
B46: =IF(Calculator!$I$12="","",EOMONTH(Calculator!$I$12,26)+1) -> 2019-07-01 | C46: =IF(B46>Calculator!$I$12,0.005,"") -> 0.005
B47: =IF(Calculator!$I$12="","",EOMONTH(Calculator!$I$12,27)+1) -> 2019-08-01 | C47: =IF(B47>Calculator!$I$12,0.005,"") -> 0.005
B48: =IF(Calculator!$I$12="","",EOMONTH(Calculator!$I$12,28)+1) -> 2019-09-01 | C48: =IF(B48>Calculator!$I$12,0.005,"") -> 0.005
B49: =IF(Calculator!$I$12="","",EOMONTH(Calculator!$I$12,29)+1) -> 2019-10-01 | C49: =IF(B49>Calculator!$I$12,0.005,"") -> 0.005
B50: =IF(Calculator!$I$12="","",EOMONTH(Calculator!$I$12,30)+1) -> 2019-11-01 | C50: =IF(B50>Calculator!$I$12,0.005,"") -> 0.005
B51: =IF(Calculator!$I$12="","",EOMONTH(Calculator!$I$12,31)+1) -> 2019-12-01 | C51: =IF(B51>Calculator!$I$12,0.005,"") -> 0.005
B52: =IF(Calculator!$I$12="","",EOMONTH(Calculator!$I$12,32)+1) -> 2020-01-01 | C52: =IF(B52>Calculator!$I$12,0.005,"") -> 0.005
B53: =IF(Calculator!$I$12="","",EOMONTH(Calculator!$I$12,33)+1) -> 2020-02-01 | C53: =IF(B53>Calculator!$I$12,0.005,"") -> 0.005
B54: =IF(Calculator!$I$12="","",EOMONTH(Calculator!$I$12,34)+1) -> 2020-03-01 | C54: =IF(B54>Calculator!$I$12,0.005,"") -> 0.005
B55: =IF(Calculator!$I$12="","",EOMONTH(Calculator!$I$12,35)+1) -> 2020-04-01 | C55: =IF(B55>Calculator!$I$12,0.005,"") -> 0.005
B56: =IF(Calculator!$I$12="","",EOMONTH(Calculator!$I$12,36)+1) -> 2020-05-01 | C56: =IF(B56>Calculator!$I$12,0.005,"") -> 0.005
B57: =IF(Calculator!$I$12="","",EOMONTH(Calculator!$I$12,37)+1) -> 2020-06-01 | C57: =IF(B57>Calculator!$I$12,0.005,"") -> 0.005
B58: =IF(Calculator!$I$12="","",EOMONTH(Calculator!$I$12,38)+1) -> 2020-07-01 | C58: =IF(B58>Calculator!$I$12,0.005,"") -> 0.005
B59: =IF(Calculator!$I$12="","",EOMONTH(Calculator!$I$12,39)+1) -> 2020-08-01 | C59: =IF(B59>Calculator!$I$12,0.005,"") -> 0.005
B60: =IF(Calculator!$I$12="","",EOMONTH(Calculator!$I$12,40)+1) -> 2020-09-01 | C60: =IF(B60>Calculator!$I$12,0.005,"") -> 0.005
B61: =IF(Calculator!$I$12="","",EOMONTH(Calculator!$I$12,41)+1) -> 2020-10-01 | C61: =IF(B61>Calculator!$I$12,0.005,"") -> 0.005
B62: =IF(Calculator!$I$12="","",EOMONTH(Calculator!$I$12,42)+1) -> 2020-11-01 | C62: =IF(B62>Calculator!$I$12,0.005,"") -> 0.005
B63: =IF(Calculator!$I$12="","",EOMONTH(Calculator!$I$12,43)+1) -> 2020-12-01 | C63: =IF(B63>Calculator!$I$12,0.005,"") -> 0.005
B64: =IF(Calculator!$I$12="","",EOMONTH(Calculator!$I$12,44)+1) -> 2021-01-01 | C64: =IF(B64>Calculator!$I$12,0.005,"") -> 0.005
B65: =IF(Calculator!$I$12="","",EOMONTH(Calculator!$I$12,45)+1) -> 2021-02-01 | C65: =IF(B65>Calculator!$I$12,0.005,"") -> 0.005
B66: =IF(Calculator!$I$12="","",EOMONTH(Calculator!$I$12,46)+1) -> 2021-03-01 | C66: =IF(B66>Calculator!$I$12,0.005,"") -> 0.005
B67: =IF(Calculator!$I$12="","",EOMONTH(Calculator!$I$12,47)+1) -> 2021-04-01 | C67: =IF(B67>Calculator!$I$12,0.005,"") -> 0.005
B68: =IF(Calculator!$I$12="","",EOMONTH(Calculator!$I$12,48)+1) -> 2021-05-01 | C68: =IF(B68>Calculator!$I$12,0.005,"") -> 0.005
B69: =IF(Calculator!$I$12="","",EOMONTH(Calculator!$I$12,49)+1) -> 2021-06-01 | C69: =IF(B69>Calculator!$I$12,0.005,"") -> 0.005
